{"text_format":"1","workbook":"xlsx","n_sheets":1,"sheets":["Rechnung für Haustierbetreuung"],"not_rendered":{"charts":0,"images":1,"macros":0,"external_links":0,"defined_names":0,"comments":0,"pivot_tables":0},"unopened":[],"bounds":{"document_bytes":16777216,"sheet_cells":100000,"rows_first":2000,"rows_last":500,"rows_between":2000,"halvings":0,"cell_chars":16384,"cell_head_chars":4096},"cells_cut":0,"cells_raw":0,"read":"whole","date_system":"1900"}

{"sheet":"Rechnung für Haustierbetreuung","index":0,"n_rows":49,"n_cols":14,"rows_kept":49,"cut":false,"hidden":false,"merged":[[7,3,7,5],[8,3,8,5],[7,11,7,13],[8,11,8,13],[40,1,45,7],[11,3,12,3],[13,3,14,3],[15,3,16,3],[17,3,18,3],[27,3,28,3],[29,3,30,3],[31,3,32,3],[33,3,34,3],[35,1,36,1],[29,1,30,1],[11,1,12,1],[47,1,47,13],[48,1,48,13],[35,3,36,3],[37,3,38,3],[37,1,38,1],[13,1,14,1],[15,1,16,1],[17,1,18,1],[39,1,39,7],[31,1,32,1],[33,1,34,1],[19,1,20,1],[21,1,22,1],[23,1,24,1],[25,1,26,1],[19,3,20,3],[21,3,22,3],[23,3,24,3],[25,3,26,3],[27,1,28,1]]}
[null,"[Firmenname]"]
[]
[null,"[Straße]"]
[null,"[PLZ Ort]"]
[null,"[Telefon]"]
[]
[null,"Rechnung für Haustierbetreuung"]
[null,"Besitzername:",null,null,null,null,null,null,null,"Datum der Abreise:"]
[null,"Haustiername(n):",null,null,null,null,null,null,null,"Datum der Rückreise:"]
[]
[null,"Wochentag",null,"Datum",null,"Bereitgestellte Dienste (füttern, säubern, spielen, Spaziergang, Liebe und Zuneigung)",null,"Startzeitpunkt",null,"Endzeitpunkt",null,"Gesamtzeit (Minuten)",null,"Zusatzkosten"]
[null,"Montag",null,null,null,null,null,null,null,null,null,{"$f":"IF((OR(J12=\"\",H12=\"\")),\"\",IF((J12<H12), ((J12-H12)*1440)+1440,(J12-H12)*1440))","v":""}]
[null,null,null,null,null,null,null,null,null,null,null,{"$f":"IF((OR(J13=\"\",H13=\"\")),\"\",IF((J13<H13), ((J13-H13)*1440)+1440,(J13-H13)*1440))","v":""}]
[null,"Dienstag",null,null,null,null,null,null,null,null,null,""]
[null,null,null,null,null,null,null,null,null,null,null,""]
[null,"Mittwoch",null,null,null,null,null,null,null,null,null,""]
[null,null,null,null,null,null,null,null,null,null,null,""]
[null,"Donnerstag",null,null,null,null,null,null,null,null,null,""]
[null,null,null,null,null,null,null,null,null,null,null,""]
[null,"Freitag",null,null,null,null,null,null,null,null,null,""]
[null,null,null,null,null,null,null,null,null,null,null,""]
[null,"Samstag",null,null,null,null,null,null,null,null,null,""]
[null,null,null,null,null,null,null,null,null,null,null,""]
[null,"Sonntag",null,null,null,null,null,null,null,null,null,""]
[null,null,null,null,null,null,null,null,null,null,null,""]
[null,"Montag",null,null,null,null,null,null,null,null,null,""]
[null,null,null,null,null,null,null,null,null,null,null,""]
[null,"Dienstag",null,null,null,null,null,null,null,null,null,""]
[null,null,null,null,null,null,null,null,null,null,null,""]
[null,"Mittwoch",null,null,null,null,null,null,null,null,null,""]
[null,null,null,null,null,null,null,null,null,null,null,""]
[null,"Donnerstag",null,null,null,null,null,null,null,null,null,""]
[null,null,null,null,null,null,null,null,null,null,null,""]
[null,"Freitag",null,null,null,null,null,null,null,null,null,""]
[null,null,null,null,null,null,null,null,null,null,null,""]
[null,"Samstag",null,null,null,null,null,null,null,null,null,""]
[null,null,null,null,null,null,null,null,null,null,null,""]
[null,"Sonntag",null,null,null,null,null,null,null,null,null,""]
[null,null,null,null,null,null,null,null,null,null,null,""]
[null,"Anmerkungen:",null,null,null,null,null,null,null,null,null,"Zwischensumme Zusatzkosten",null,{"$f":"SUM(N12:N39)","v":0}]
[null,null,null,null,null,null,null,null,null,null,null,"Gesamtzahl der Besuche",null,{"$f":"COUNT(L12:L39)","v":0}]
[null,null,null,null,null,null,null,null,null,null,null,"Kosten pro Besuch"]
[null,null,null,null,null,null,null,null,null,null,null,"Gesamtkosten Besuche",null,{"$f":"N41*N42","v":0}]
[null,null,null,null,null,null,null,null,null,null,null,"Gesamtkosten",null,{"$f":"SUM(N40,N43)","v":0}]
[null,null,null,null,null,null,null,null,null,null,null,"Getätigte Anzahlung"]
[null,null,null,null,null,null,null,null,null,null,null,"Fälliger Saldo",null,{"$f":"N44-N45","v":0}]
[]
[null,"Schecks bitte ausstellen auf: [Firmenname]"]
[null,"Zahlung erbeten innerhalb von 7 Tagen. "]